fUSD/lending_fUSD_20251122
["ID","MTS","AMOUNT","RATE_DAILY","PERIOD"]
[394663608,1763839847576,-218.356464,0.00016567,2]
[394663609,1763839847586,-218.356464,0.00016567,2]
[394663610,1763839847596,-168.0,0.00016571,2]
[394663611,1763839847606,-168.0,0.0001665,2]
[394663612,1763839847616,-4137.0,0.00016653,2]
[394663613,1763839847626,-168.0,0.00016653,2]
[394663614,1763839847636,-1256.0,0.00016682,2]
[394663615,1763839847645,-659.0,0.00016682,2]
[394663616,1763839847656,-705.0,0.00016682,2]
[394663617,1763839847666,-606.201,0.00016682,2]
[394663618,1763839847676,-6494.0,0.00016682,2]
[394663619,1763839847686,-822.0,0.00016682,2]
[394663620,1763839847698,-775.12904491,0.000167,2]
[394663621,1763839847707,-1875.0,0.00016712,2]
[394663622,1763839847721,-500.0,0.00016712,2]
[394663623,1763839847732,-500.0,0.00016712,2]
[394663624,1763839847742,-989.96,0.00016712,2]
[394663625,1763839847751,-500.0,0.00016712,2]
[394663626,1763839847760,-500.0,0.00016712,2]
[394663627,1763839847771,-500.0,0.00016712,2]
[394663628,1763839847780,-168.0,0.00016738,2]
[394663629,1763839847790,-168.0,0.00016761,2]
[394663630,1763839847800,-168.0,0.00016802,2]
[394663631,1763839847809,-236.0,0.00016812,2]
[394663632,1763839847819,-154.54850672,0.00016886,2]
[394663633,1763839847829,-183.52698536,0.0001689,2]
[394663634,1763839847838,-151.0,0.000169,2]
[394663635,1763839847848,-151.0,0.000169,2]
[394663636,1763839847857,-151.0,0.000169,2]
[394663637,1763839847869,-151.0,0.000169,2]
[394663638,1763839847878,-3874.47081285,0.000169,2]
[394663639,1763839847887,-151.0,0.000169,2]
[394663640,1763839847899,-171598.92712795,0.000169,2]
[394663641,1763839847908,-15835.41233265,0.000169,2]
[394663642,1763839847918,-226.865755,0.000169,2]
[394663643,1763839847928,-226.865755,0.000169,2]
[394663644,1763839847938,-151.0,0.000169,2]
[394663645,1763839847947,-151.0,0.000169,2]
[394663646,1763839847957,-226.865755,0.000169,2]
[394663647,1763839847967,-226.865755,0.000169,2]
[394663648,1763839847976,-226.865755,0.000169,2]
[394663649,1763839847985,-226.865755,0.000169,2]
[394663650,1763839847994,-226.865755,0.000169,2]
[394663651,1763839848003,-226.865755,0.000169,2]
[394663652,1763839848013,-6416.5799319,0.00016966,2]
[394663653,1763839848022,-151.0,0.00016966,2]
[394663654,1763839848031,-218.356464,0.00016966,2]
[394663655,1763839848039,-218.356464,0.00016966,2]
[394663656,1763839848048,-218.356464,0.00016966,2]
[394663657,1763839848057,-218.356464,0.00016966,2]
[394663658,1763839848067,-500.0,0.00016973,2]
[394663659,1763839848076,-500.0,0.00016973,2]
[394663660,1763839848085,-298.00508969,0.00016973,2]
[394663661,1763839848094,-500.0,0.00016973,2]
[394663662,1763839848103,-500.0,0.00016973,2]
[394663663,1763839848112,-567.22615327,0.00016973,2]
[394663664,1763839848123,-500.0,0.00016973,2]
[394663665,1763839848131,-503.32747912,0.00016973,2]
[394663666,1763839848140,-500.0,0.00016973,2]
[394663667,1763839848150,-500.69487784,0.00016973,2]
[394663668,1763839848160,-500.0,0.00016973,2]
[394663669,1763839848169,-546.63647952,0.00016973,2]
[394663670,1763839848179,-500.0,0.00016973,2]
[394663671,1763839848188,-500.0,0.00016973,2]
[394663672,1763839848198,-934.28192,0.00016979,2]
[394663673,1763839848208,-1875.0,0.00016986,2]
[394663674,1763839848217,-500.0,0.00016986,2]
[394663675,1763839848227,-500.0,0.00016986,2]
[394663676,1763839848237,-989.96,0.00016986,2]
[394663677,1763839848248,-500.0,0.00016986,2]
[394663678,1763839848257,-500.0,0.00016986,2]
[394663679,1763839848266,-500.0,0.00016986,2]
[394663680,1763839848276,-1685.1,0.00016986,2]
[394663681,1763839848284,-300.0,0.00016999,2]
[394663682,1763839848294,-300.0,0.00016999,2]
[394663683,1763839848303,-129252.4232985,0.00017,2]
[394663684,1763839848312,-160.0,0.00017,2]
[394663685,1763839848322,-48536.79756318,0.00017,2]
[394663686,1763839848478,-420.0,0.00017,2]
[394663687,1763839848490,-655.0,0.00017,2]
[394663688,1763839848502,-282.635,0.00017,2]
[394663689,1763839848513,-2514.75,0.00017,2]
[394663690,1763839848524,-6633.31480713,0.00017,2]
[394663775,1763840010922,867.06,0.00013699,2]
[394663777,1763840112732,156.70308092,0.000148,2]
[394663782,1763840141264,1029.74311717,0.000148,2]
[394663783,1763840335500,1016.6664,0.000148,2]
[394663784,1763840426498,955.22020921,0.000148,2]
[394663785,1763840436461,8801.00940147,0.000148,2]
[394663786,1763840448073,156.70308084,0.000148,2]
[394663787,1763840479565,5074.07575404,0.000148,2]
[394663788,1763840493839,688.555,0.00014602,2]
[394663789,1763840507613,182.01310552,0.00014799,2]
[394663791,1763840706821,835.81768305,0.000148,2]
[394663802,1763840773551,156.70308084,0.000148,2]
[394663805,1763840822746,7920.90846135,0.000148,2]
[394663813,1763840997557,-151.0,0.00014897,2]
[394663820,1763841031427,-150.0,0.00014898,2]
[394663821,1763841031437,-340.024864,0.00014898,2]
[394663822,1763841031480,-859.975136,0.00014898,2]
[394663823,1763841031490,-250.0,0.00014899,2]
[394663824,1763841031499,-500.0,0.00014899,2]
[394663825,1763841031508,-524.08788661,0.00014899,2]
[394663826,1763841031520,-314.30951992,0.00014899,2]
[394663827,1763841031530,-500.0,0.00014899,2]
[394663828,1763841031539,-237.80859459,0.00014899,2]
[394663829,1763841031549,-567.32504452,0.00014899,2]
[394663830,1763841031558,-500.0,0.00014899,2]
[394663831,1763841031568,-205.42301198,0.00014899,2]
[394663832,1763841031580,-294.57698802,0.00014899,2]
[394663833,1763841031589,-500.0,0.00014899,2]
[394663834,1763841031599,-500.0,0.00014899,2]
[394663835,1763841031608,-500.0,0.00014899,2]
[394663836,1763841031617,-500.0,0.00014899,2]
[394663837,1763841031626,-500.0,0.00014899,2]
[394663838,1763841031636,-500.0,0.00014899,2]
[394663839,1763841031646,-462.950253,0.00014899,2]
[394663840,1763841031657,-37.049747,0.00014899,2]
[394663841,1763841031666,-457.86946215,0.00014899,2]
[394663842,1763841031682,-42.13053785,0.00014899,2]
[394663843,1763841031692,-500.0,0.00014899,2]
[394663844,1763841031702,-500.0,0.00014899,2]
[394663845,1763841031712,-393.20592541,0.00014899,2]
[394663846,1763841031722,-149.76852441,0.00014899,2]
[394663847,1763841031734,-350.23147559,0.00014899,2]
[394663848,1763841031744,-500.0,0.00014899,2]
[394663850,1763841031753,-500.0,0.00014899,2]
[394663851,1763841031764,-500.0,0.00014899,2]
[394663854,1763841031774,-21.25443197,0.00014899,2]
[394663856,1763841031786,-204.9642138,0.00014899,2]
[394663858,1763841031795,-254.31,0.00014899,2]
[394663860,1763841031804,-557.39225828,0.000149,2]
[394663862,1763841031815,-970.58787106,0.000149,2]
[394663864,1763841031827,-916.31350998,0.000149,2]
[394663874,1763841037556,-818.85764113,0.000149,2]
[394663875,1763841037661,-410.74831955,0.000149,2]
[394663876,1763841037671,-250.0,0.00015031,2]
[394663877,1763841037680,-334.27750377,0.00015144,2]
[394663878,1763841037691,-2991.16915867,0.00015144,2]
[394663887,1763841039566,-263.33223311,0.00015144,2]
[394663888,1763841039577,-306.75516906,0.00015144,2]
[394663889,1763841039588,-4025.37439667,0.00015144,2]
[394663890,1763841039598,-254.31,0.00015173,2]
[394663891,1763841039607,-500.0,0.00015312,2]
[394663892,1763841039616,-150.0,0.00015325,2]
[394663893,1763841039626,-2751.0,0.00015381,2]
[394663894,1763841039635,-7859.30710136,0.00015404,2]
[394663895,1763841039644,-254.31,0.00015447,2]
[394663896,1763841039654,-150.99,0.00015489,2]
[394663897,1763841039663,-7920.90846128,0.00015489,2]
[394663898,1763841039672,-537.0,0.00015713,2]
[394663899,1763841039681,-999.0,0.0001572,3]
[394663900,1763841039690,-537.0,0.00015789,2]
[394663901,1763841039699,-7920.90846128,0.00015833,2]
[394663902,1763841039709,-537.0,0.00015835,2]
[394663903,1763841039719,-10817.82,0.00015857,2]
[394663904,1763841039728,-530.30905929,0.000159,2]
[394663905,1763841039737,-530.30905927,0.000159,2]
[394663906,1763841039746,-537.0,0.00015937,2]
[394663907,1763841039755,-537.0,0.00015981,2]
[394663908,1763841039765,-150.0,0.00016003,2]
[394663909,1763841039774,-150.0,0.00016003,2]
[394663910,1763841039783,-150.0,0.00016003,2]
[394663911,1763841039793,-150.0,0.00016003,2]
[394663912,1763841039802,-150.0,0.00016003,2]
[394663913,1763841039812,-255.0,0.0001603,2]
[394663914,1763841039821,-537.0,0.00016071,2]
[394663915,1763841039831,-537.0,0.00016097,2]
[394663916,1763841039841,-537.0,0.00016126,2]
[394663917,1763841039851,-250.0,0.00016133,2]
[394663918,1763841039860,-7920.90846128,0.00016178,2]
[394663919,1763841039869,-166.67,0.00016191,2]
[394663920,1763841039881,-193.0,0.00016196,2]
[394663922,1763841039890,-537.0,0.000163,2]
[394663923,1763841039900,-250.0,0.00016388,2]
[394663924,1763841039909,-300.0,0.00016388,2]
[394663925,1763841039929,-960.0,0.00016388,2]
[394663926,1763841039941,-193.0,0.0001639,2]
[394663928,1763841039950,-210.47,0.00016398,2]
[394663929,1763841039960,-500.0,0.00016438,2]
[394663930,1763841039969,-422.26572216,0.00016438,2]
[394663931,1763841039978,-265.72104896,0.00016438,2]
[394663932,1763841039987,-500.0,0.00016438,2]
[394663933,1763841039997,-500.0,0.00016438,2]
[394663934,1763841040007,-457.43392611,0.00016438,2]
[394663935,1763841040016,-1640.62,0.00016438,2]
[394663936,1763841040026,-866.21,0.00016438,2]
[394663937,1763841040035,-500.0,0.00016438,2]
[394663938,1763841040044,-500.0,0.00016438,2]
[394663939,1763841040057,-7920.90846128,0.00016522,2]
[394663940,1763841040066,-193.0,0.00016588,2]
[394663941,1763841040075,-609.0,0.00016682,2]
[394663942,1763841040085,-3532.298,0.00016682,2]
[394663943,1763841040095,-822.0,0.00016682,2]
[394663944,1763841040104,-1601.0,0.00016682,2]
[394663945,1763841040113,-1256.0,0.00016682,2]
[394663947,1763841040123,-659.0,0.00016682,2]
[394663948,1763841040133,-705.0,0.00016682,2]
[394663950,1763841040142,-193.0,0.00016707,2]
[394663951,1763841040151,-500.0,0.00016712,2]
[394663952,1763841040161,-500.0,0.00016712,2]
[394663953,1763841040171,-1574.94784109,0.00016712,2]
[394663954,1763841040184,-65.67215891,0.00016712,2]
[394663955,1763841040193,-866.21,0.00016712,2]
[394663956,1763841040203,-500.0,0.00016712,2]
[394663957,1763841040212,-500.0,0.00016712,2]
[394663958,1763841040222,-877.15026966,0.00016727,2]
[394663959,1763841040231,-193.0,0.00016782,2]
[394663960,1763841040240,-180.02069,0.0001683,2]
[394663961,1763841040249,-500.0,0.00016863,2]
[394663962,1763841040260,-500.0,0.00016864,2]
[394663963,1763841040269,-500.0,0.00016864,2]
[394663964,1763841040279,-500.0,0.00016864,2]
[394663965,1763841040288,-200.0,0.00016864,2]
[394663966,1763841040297,-5408.24013016,0.00016867,2]
[394663967,1763841040310,-2512.66833112,0.00016867,2]
[394663968,1763841040321,-4566.6681786,0.0001689,2]
[394663969,1763841040331,-150.0,0.00016892,2]
[394663970,1763841040341,-180.02069,0.0001695,2]
[394663971,1763841040351,-355.66069003,0.00016986,2]
[394663972,1763841040362,-144.33930997,0.00016986,2]
[394663973,1763841040371,-500.0,0.00016986,2]
[394663974,1763841040380,-1640.62,0.00016986,2]
[394663975,1763841040389,-866.21,0.00016986,2]
[394663976,1763841040399,-500.0,0.00016986,2]
[394663977,1763841040408,-500.0,0.00016986,2]
[394663978,1763841040418,-3421.934821,0.0001699,2]
[394663979,1763841040429,-13115.7163953,0.0001699,2]
[394663980,1763841040439,-1431.732508,0.0001699,2]
[394663981,1763841040449,-42338.8565826,0.0001699,2]
[394663982,1763841040458,-5389.4937635,0.0001699,2]
[394663983,1763841040468,-3010.6948403,0.0001699,2]
[394663984,1763841040477,-3921.32992643,0.00017,2]
[394663985,1763841040487,-4831.8338529,0.00017,2]
[394663986,1763841040499,-1297.56,0.00017,2]
[394663987,1763841040510,-4335.12543046,0.00017,2]
[394664012,1763841044201,-0.09546932,0.000159,2]
[394664023,1763841045717,-530.21358995,0.000159,2]
[394664024,1763841045727,-1192.0,0.00016682,2]
[394664025,1763841045737,-5326.672047,0.00017,2]
[394664026,1763841045980,-12040.04440058,0.00017,2]
[394664027,1763841045991,-35746.9438931,0.00017,2]
[394664028,1763841046001,-155.34853819,0.00017,2]
[394664029,1763841046011,-2000.0,0.00017,2]
[394664030,1763841046020,-151.0,0.00017,2]
[394664031,1763841046030,-250.0,0.00017,2]
[394664033,1763841046039,-328.14066516,0.00017005,2]
[394664035,1763841046049,-1009.0,0.000171,2]
[394664037,1763841046060,-360.02913459,0.00017132,2]
[394664038,1763841046071,-193.0,0.00017137,2]
[394664039,1763841046080,-1000.0,0.000172,2]
[394664040,1763841046090,-180.0207,0.0001721,2]
[394664042,1763841046099,-7920.90846128,0.00017211,2]
[394664044,1763841046110,-163.87,0.00017234,2]
[394664046,1763841046119,-168.0,0.0001724,2]
[394664047,1763841046128,-187.0,0.00017252,2]
[394664048,1763841046139,-160.73,0.0001726,2]
[394664049,1763841046150,-500.0,0.0001726,2]
[394664050,1763841046160,-500.0,0.0001726,2]
[394664051,1763841046170,-1640.62,0.0001726,2]
[394664052,1763841046179,-866.21,0.0001726,2]
[394664053,1763841046189,-500.0,0.0001726,2]
[394664054,1763841046200,-577.21,0.0001726,2]
[394664055,1763841046211,-193.0,0.00017281,2]
[394664056,1763841046221,-193.0,0.00017286,2]
[394664057,1763841046231,-1000.0,0.000173,2]
[394664058,1763841046241,-4566.66817859,0.00017346,2]
[394664060,1763841046253,-731.34047266,0.000174,2]
[394664062,1763841046264,-180.02069,0.0001745,2]
[394664064,1763841046274,-2005.94430117,0.000175,2]
[394664066,1763841046284,-500.0,0.000175,2]
[394664067,1763841046294,-500.0,0.000175,2]
[394664068,1763841046305,-500.0,0.000175,2]
[394664069,1763841046314,-500.0,0.000175,2]
[394664070,1763841046323,-500.0,0.000175,2]
[394664071,1763841046332,-500.0,0.000175,2]
[394664072,1763841046341,-500.0,0.000175,2]
[394664073,1763841046349,-500.0,0.000175,2]
[394664074,1763841046359,-500.0,0.000175,2]
[394664075,1763841046369,-500.0,0.000175,2]
[394664076,1763841046378,-500.0,0.000175,2]
[394664077,1763841046387,-500.0,0.000175,2]
[394664078,1763841046397,-500.0,0.000175,2]
[394664079,1763841046408,-500.0,0.000175,2]
[394664080,1763841046417,-500.0,0.000175,2]
[394664081,1763841046426,-500.0,0.000175,2]
[394664082,1763841046435,-500.0,0.000175,2]
[394664083,1763841046444,-500.0,0.000175,2]
[394664084,1763841046453,-500.0,0.000175,2]
[394664085,1763841046463,-500.0,0.000175,2]
[394664086,1763841046472,-500.0,0.000175,2]
[394664087,1763841046481,-500.0,0.000175,2]
[394664088,1763841046491,-500.0,0.000175,2]
[394664089,1763841046500,-693.0,0.000175,2]
[394664090,1763841046509,-168.0,0.00017522,2]
[394664091,1763841046518,-166.67,0.00017527,2]
[394664092,1763841046748,-500.0,0.00017534,2]
[394664093,1763841046758,-500.0,0.00017534,2]
[394664094,1763841046767,-1640.62,0.00017534,2]
[394664095,1763841046776,-866.21,0.00017534,2]
[394664096,1763841046786,-500.0,0.00017534,2]
[394664097,1763841046796,-7920.90846128,0.00017556,2]
[394664098,1763841046805,-183.01,0.00017556,2]
[394664099,1763841046815,-193.0,0.00017558,2]
[394664100,1763841046824,-193.0,0.00017677,2]
[394664101,1763841046833,-180.0207,0.000177,2]
[394664102,1763841046843,-193.0,0.00017709,2]
[394664103,1763841046852,-193.0,0.0001778,2]
[394664104,1763841046861,-150.0,0.00017781,2]
[394664105,1763841046870,-150.0,0.00017781,2]
[394664106,1763841046880,-4566.66817859,0.00017802,2]
[394664107,1763841046889,-500.0,0.00017808,2]
[394664108,1763841046898,-500.0,0.00017808,2]
[394664109,1763841046907,-1640.62,0.00017808,2]
[394664110,1763841046916,-866.21,0.00017808,2]
[394664111,1763841046925,-500.0,0.00017808,2]
[394664112,1763841046934,-236.26579909,0.0001782,2]
[394664113,1763841046944,-168.0,0.000179,2]
[394664114,1763841046952,-154.54850671,0.000179,2]
[394664115,1763841046961,-167.37962358,0.000179,2]
[394664116,1763841046970,-151.0,0.000179,2]
[394664117,1763841046979,-151.0,0.000179,2]
[394664118,1763841046988,-151.0,0.000179,2]
[394664119,1763841046997,-151.0,0.000179,2]
[394664120,1763841047007,-156.324401,0.000179,2]
[394664121,1763841047016,-151.0,0.000179,2]
[394664122,1763841047025,-7920.90846128,0.000179,2]
[394664123,1763841047034,-194.16714396,0.000179,2]
[394664124,1763841047043,-212.77387788,0.000179,2]
[394664125,1763841047053,-700.0212633,0.000179,2]
[394664126,1763841047066,-188.27570926,0.000179,2]
[394664127,1763841047075,-3578.2174156,0.000179,2]
[394664128,1763841047084,-168.0,0.00017928,2]
[394664129,1763841047093,-180.02069,0.0001795,2]
[394664130,1763841047104,-1431.19,0.00017958,2]
[394664131,1763841047113,-500.0,0.00017973,2]
[394664132,1763841047122,-500.0,0.00017973,2]
[394664133,1763841047131,-500.0,0.00017973,2]
[394664134,1763841047141,-314.07834395,0.00017973,2]
[394664135,1763841047151,-151.0,0.00017973,2]
[394664136,1763841047160,-151.0,0.00017973,2]
[394664137,1763841047169,-152.463015,0.00017973,2]
[394664138,1763841047179,-151.0,0.00017973,2]
[394664139,1763841047188,-205.772083,0.00017973,2]
[394664140,1763841047197,-151.0,0.00017973,2]
[394664141,1763841047207,-193.07364936,0.0001799,2]
[394664142,1763841047216,-193.07364936,0.0001799,2]
[394664143,1763841047225,-1001.3269,0.00017999,2]
[394664144,1763841047235,-300.0,0.00017999,2]
[394664145,1763841047244,-300.0,0.00017999,2]
[394664146,1763841047254,-300.0,0.00017999,2]
[394664147,1763841047263,-4592.0,0.00018,2]
[394664148,1763841047275,-21177.96440189,0.00018,2]
[394664152,1763841095444,4710.0,0.000134,5]
[394664164,1763841141459,5849.0,0.000148,2]
[394664165,1763841141488,557237.22865519,0.000148,2]
[394664166,1763841153099,-7899.79941486,0.000148,2]
[394664167,1763841153218,-10000.01,0.000148,2]
[394664168,1763841153339,-10000.01,0.000148,2]
[394664169,1763841155199,-10000.01,0.000148,2]
[394664170,1763841155315,-2809.81727005,0.000148,2]
[394664171,1763841155339,-4380.3754599,0.000148,2]
[394664310,1763841733343,168.72,0.00013072,2]
[394664377,1763841908077,220.0,0.00013007,2]
[394664423,1763842231775,-370.0,0.00014899,2]
[394664424,1763842231787,-130.0,0.00014899,2]
[394664425,1763842231796,-500.0,0.00014899,2]
[394664426,1763842231806,-166.66,0.00015368,2]
[394664427,1763842231815,-172.07205562,0.0001547,2]
[394664428,1763842231825,-126.13918568,0.000155,2]
[394664429,1763842231934,-452.0700574,0.000155,2]
[394664430,1763842231943,-215.0,0.00015569,2]
[394664431,1763842231954,-300.0,0.00015569,2]
[394664432,1763842231964,-324.7109775,0.0001557,2]
[394664433,1763842231976,-922.2890225,0.0001557,2]
[394664434,1763842231985,-151.0,0.0001557,2]
[394664435,1763842231994,-1247.0,0.0001557,2]
[394664436,1763842232003,-151.0,0.0001557,2]
[394664437,1763842232012,-1247.0,0.0001557,2]
[394664438,1763842232022,-151.0,0.0001557,2]
[394664439,1763842232031,-1247.0,0.0001557,2]
[394664440,1763842232040,-151.0,0.0001557,2]
[394664442,1763842232050,-1247.0,0.0001557,2]
[394664444,1763842232059,-153.0,0.0001557,2]
[394664446,1763842232068,-153.0,0.0001557,2]
[394664448,1763842232078,-153.0,0.0001557,2]
[394664449,1763842232088,-153.0,0.0001557,2]
[394664450,1763842232098,-152.0,0.0001557,2]
[394664451,1763842232107,-152.0,0.0001557,2]
[394664452,1763842232116,-152.0,0.0001557,2]
[394664453,1763842232126,-152.0,0.0001557,2]
[394664454,1763842232135,-152.0,0.0001557,2]
[394664455,1763842232144,-152.0,0.0001557,2]
[394664456,1763842232154,-152.0,0.0001557,2]
[394664457,1763842232164,-152.0,0.0001557,2]
[394664458,1763842232173,-152.0,0.0001557,2]
[394664459,1763842232183,-166.66,0.00015692,2]
[394664460,1763842232192,-152.0,0.00015695,2]
[394664461,1763842232202,-152.0,0.00015695,2]
[394664462,1763842232211,-152.0,0.00015695,2]
[394664463,1763842232220,-152.0,0.00015695,2]
[394664464,1763842232230,-152.0,0.00015695,2]
[394664465,1763842232239,-152.0,0.00015695,2]
[394664466,1763842232247,-152.0,0.00015695,2]
[394664467,1763842232256,-152.0,0.00015695,2]
[394664468,1763842232266,-152.0,0.00015695,2]
[394664469,1763842232277,-152.0,0.00015695,2]
[394664470,1763842232288,-152.0,0.00015695,2]
[394664471,1763842232297,-152.0,0.00015695,2]
[394664472,1763842232309,-152.0,0.00015695,2]
[394664473,1763842232319,-152.0,0.00015695,2]
[394664474,1763842232328,-152.0,0.00015695,2]
[394664475,1763842232339,-152.0,0.00015695,2]
[394664476,1763842232348,-152.0,0.00015695,2]
[394664477,1763842232358,-152.0,0.00015695,2]
[394664478,1763842232369,-152.0,0.00015695,2]
[394664479,1763842232379,-166.66,0.00016015,2]
[394664480,1763842232390,-150.0,0.000162,2]
[394664481,1763842232401,-150.0,0.000162,2]
[394664482,1763842232411,-150.0,0.000162,2]
[394664483,1763842232421,-150.0,0.000162,2]
[394664484,1763842232435,-150.0,0.000162,2]
[394664485,1763842232445,-150.0,0.000162,2]
[394664486,1763842232456,-150.0,0.000162,2]
[394664487,1763842232466,-561.0,0.00016289,2]
[394664488,1763842232477,-166.66,0.00016339,2]
[394664489,1763842232487,-160.73,0.00016354,2]
[394664490,1763842232496,-429.2745342,0.00016373,2]
[394664491,1763842232506,-299.99,0.00016373,4]
[394664492,1763842232516,-7736.61042745,0.00016373,2]
[394664493,1763842232528,-405.14652792,0.00016373,2]
[394664494,1763842232539,-278.25304463,0.00016373,2]
[394664495,1763842232549,-500.0,0.00016438,2]
[394664496,1763842232559,-150.99,0.00016438,2]
[394664497,1763842232568,-1405.17271406,0.00016438,2]
[394664500,1763842239797,-318.18543557,0.000159,2]
[394664501,1763842239806,-395.55563462,0.00016289,2]
[394664502,1763842239818,-512.44436538,0.00016289,2]
[394664503,1763842239829,-67.37363562,0.00016438,2]
[394664504,1763842240065,-1729.9999,0.00016438,2]
[394664522,1763842243498,-1970.32375032,0.00016438,2]
[394664524,1763842243508,-3409.7438198,0.00016536,2]
[394664525,1763842243522,-1107.93242988,0.00016536,2]
[394664550,1763842245815,-318.18543556,0.000159,2]
[394664551,1763842245826,-1712.43757012,0.00016536,2]
[394664552,1763842245837,-1192.0,0.00016625,2]
[394664553,1763842245846,-200.0,0.00016643,2]
[394664554,1763842245855,-166.66,0.00016662,2]
[394664555,1763842245866,-500.0,0.00016712,2]
[394664556,1763842245876,-191.95,0.00016712,2]
[394664557,1763842245888,-1599.0,0.00016782,2]
[394664558,1763842245897,-301.532,0.00016782,2]
[394664559,1763842245907,-347.62,0.00016842,2]
[394664560,1763842245917,-166.66,0.00016986,2]
[394664561,1763842245926,-500.0,0.00016986,2]
[394664562,1763842245935,-1305.24,0.00016986,2]
[394664563,1763842245944,-1000.0,0.00016999,2]
[394664564,1763842245954,-2000.0,0.00017,2]
[394664565,1763842245963,-420.0,0.0001703,2]
[394664566,1763842245972,-572.47,0.00017163,2]
[394664567,1763842245981,-2180.49,0.00017226,2]
[394664568,1763842245991,-500.0,0.0001726,2]
[394664569,1763842246000,-313.99130171,0.00017305,2]
[394664570,1763842246009,-500.0,0.0001736,2]
[394664571,1763842246019,-200.0,0.0001736,2]
[394664572,1763842246028,-500.0,0.00017534,2]
[394664573,1763842246038,-693.609,0.00017534,2]
[394664574,1763842246047,-168.38,0.00017741,2]
[394664575,1763842246056,-500.0,0.00017808,2]
[394664576,1763842246066,-267.85221208,0.00017883,2]
[394664577,1763842246075,-182.43,0.00017885,2]
[394664578,1763842246085,-154.54850671,0.000179,2]
[394664579,1763842246094,-3883.41194252,0.000179,2]
[394664580,1763842246103,-156.70308084,0.000179,2]
[394664581,1763842246112,-914.01672646,0.000179,2]
[394664582,1763842246122,-699.76484207,0.000179,2]
[394664583,1763842246131,-2556.16500129,0.000179,2]
[394664584,1763842246140,-432.0951073,0.00017936,2]
[394664585,1763842246149,-501.64742584,0.00017973,2]
[394664586,1763842246159,-500.0,0.00017973,2]
[394664587,1763842246168,-160.73,0.00017989,2]
[394664588,1763842246178,-193.07364936,0.0001799,2]
[394664589,1763842246188,-1000.0,0.00017999,2]
[394664590,1763842246197,-368.56866973,0.00017999,2]
[394664591,1763842246206,-300.0,0.00017999,2]
[394664592,1763842246216,-500.0,0.00017999,2]
[394664593,1763842246225,-356.01057316,0.00017999,2]
[394664594,1763842246235,-160.77703824,0.00017999,2]
[394664595,1763842246244,-1230.47,0.00017999,2]
[394664596,1763842246264,-300.0,0.00017999,2]
[394664597,1763842246273,-649.66,0.00017999,2]
[394664598,1763842246283,-500.0,0.00017999,2]
[394664599,1763842246292,-220.01666395,0.00017999,2]
[394664600,1763842246302,-366.46601621,0.00017999,2]
[394664601,1763842246311,-500.0,0.00017999,2]
[394664602,1763842246320,-500.0,0.00017999,2]
[394664603,1763842246329,-210.35621394,0.00017999,2]
[394664604,1763842246338,-366.86152062,0.00017999,2]
[394664605,1763842246347,-3671.0,0.00018,2]
[394664606,1763842246356,-150.0,0.00018,2]